bitfinex-derivatives/quotes_ETHF0:USTF0_20250929
["timestamp","ask_amount","ask_price","bid_price","bid_amount"]
[1759104273141,0.7752,4140.7,4140.6,2.2026]
[1759104274149,3.2078,4141.2,4140.8,0.6157]
[1759104274346,0.7752,4141.1,4141.0,1.259]
[1759104274545,0.7752,4141.1,4141.0,1.507]
[1759104275742,1.0923,4141.1,4141.0,1.3162]
[1759104275945,1.0923,4141.1,4141.0,0.5554]
[1759104276751,1.0923,4141.1,4141.0,0.3074]
[1759104277050,1.0923,4141.1,4141.0,0.5554]
[1759104277653,1.57341123,4141.1,4141.0,0.5554]
[1759104279549,1.57341123,4141.1,4140.6,2.91980474]
[1759104279550,1.0923,4140.7,4140.6,2.91980474]
[1759104279752,1.0923,4140.7,4140.6,1.1938]
[1759104279941,1.0923,4140.7,4140.6,1.4418]
[1759104281446,4.3001,4140.7,4140.6,1.1344]
[1759104282555,4.3001,4140.7,4140.6,1.4418]
[1759104285854,4.3001,4140.7,4140.6,1.1938]
[1759104286055,4.3001,4140.7,4140.6,1.4418]
[1759104286561,4.3001,4140.7,4140.6,1.1938]
[1759104286856,4.3001,4140.7,4140.6,1.4418]
[1759104287058,3.2078,4141.2,4140.6,1.1938]
[1759104287261,0.91562367,4141.1,4141.0,0.6433]
[1759104289854,0.48115367,4141.1,4141.0,0.9507]
[1759104290751,0.48115367,4141.1,4141.0,0.6433]
[1759104291149,0.48115367,4141.1,4141.0,1.507]
[1759104291651,0.43442,4141.6,4141.5,1.259]
[1759104291853,0.91551498,4141.6,4141.5,1.259]
[1759104293156,0.48109498,4141.6,4141.5,1.259]
[1759104300755,0.00188381,4142.0,4141.9,1.58258]
[1759104301155,0.48411969,4142.0,4141.9,1.58258]
[1759104302158,0.48411969,4142.0,4141.9,1.1482]
[1759104302956,0.48411969,4142.0,4141.9,2.0344]
[1759104303558,0.73211969,4142.0,4141.9,1.3673]
[1759104304762,0.48411969,4142.0,4141.9,2.0344]
[1759104305961,0.48411969,4142.0,4141.9,1.6905]
[1759104305962,0.73211969,4142.0,4141.9,1.6905]
[1759104306162,0.73211969,4142.0,4141.9,1.3673]
[1759104307263,1.03511969,4142.0,4141.9,0.87339]
[1759104307563,0.73747,4141.1,4141.0,0.8579]
[1759104307967,1.21936242,4141.1,4141.0,0.8579]
[1759104309361,1.55936242,4141.1,4141.0,1.339]
[1759104311068,0.91636242,4141.1,4141.0,1.339]
[1759104311458,0.551,4141.5,4141.4,0.6671]
[1759104311661,0.98543,4141.5,4141.4,1.1482]
[1759104312063,1.56083,4141.5,4141.4,1.1482]
[1759104312561,1.32543,4141.5,4141.4,1.1482]
[1759104312765,1.56083,4141.5,4141.4,1.1482]
[1759104313970,1.56083,4141.5,4141.4,0.8043]
[1759104318377,1.56083,4141.5,4141.4,0.4811]
[1759104318581,1.34117,4141.1,4141.0,0.9977]
[1759104318778,1.35377,4141.1,4141.0,0.9977]
[1759104319076,1.35377,4141.1,4141.0,1.3216]
[1759104320272,1.58917,4141.1,4141.0,1.0074]
[1759104320472,1.58917,4141.1,4141.0,0.4927]
[1759104321469,1.10582,4140.6,4140.5,0.505]
[1759104321673,4.79702,4140.6,4140.5,0.505]
[1759104321874,4.79702,4140.6,4140.5,0.9977]
[1759104322378,4.79702,4140.6,4140.5,0.6835]
[1759104322579,4.79702,4140.6,4140.5,0.9977]
[1759104322979,4.56162,4140.6,4140.5,0.9977]
[1759104323470,5.04103036,4140.6,4140.5,1.3216]
[1759104323879,5.31193036,4140.6,4140.5,0.4927]
[1759104324074,1.11747,4140.1,4140.0,0.8567]
[1759104324279,1.86778036,4140.1,4140.0,0.5321]
[1759104324586,1.86778036,4140.1,4140.0,1.0393]
[1759104325686,1.59688036,4140.1,4140.0,1.3639]
[1759104326779,1.86778036,4140.1,4140.0,1.0393]
[1759104327583,1.59688036,4140.1,4140.0,1.3639]
[1759104328083,1.24108036,4140.1,4140.0,1.3639]
[1759104328677,0.76167,4140.1,4140.0,1.3639]
[1759104334284,1.23370384,4140.1,4140.0,1.3639]
[1759104334484,1.58950384,4140.1,4140.0,1.3639]
[1759104336287,1.3884,4139.8,4139.7,0.00197357]
[1759104336485,1.86043384,4139.8,4139.7,0.00197357]
[1759104336879,1.86043384,4139.8,4139.7,0.85157357]
[1759104337086,1.58953384,4139.8,4139.7,0.85157357]
[1759104337487,0.4346,4139.8,4139.7,1.17617357]
[1759104337676,1.23392871,4139.8,4139.7,1.17617357]
[1759104337874,1.58972871,4139.8,4139.7,1.17617357]
[1759104338289,1.1175,4139.8,4139.7,1.17617357]
[1759104338880,1.58971672,4139.8,4139.7,1.17617357]
[1759104339084,1.86061672,4139.8,4139.7,0.85157357]
[1759104339887,1.58971672,4139.8,4139.7,1.17617357]
[1759104342994,1.23391672,4139.8,4139.7,1.17617357]
[1759104346792,0.90681672,4139.8,4139.7,1.17617357]
[1759104348592,1.23391672,4139.8,4139.7,1.17617357]
[1759104349093,1.86061672,4139.8,4139.7,1.17617357]
[1759104349301,1.86061672,4139.8,4139.7,0.85157357]
[1759104350297,1.86061672,4139.8,4139.7,0.50917357]
[1759104351601,1.23391672,4139.8,4139.7,1.17617357]
[1759104353303,1.58971672,4139.8,4139.7,1.17617357]
[1759104357300,1.84281672,4139.8,4139.7,1.17617357]
[1759104357507,1.84281672,4139.8,4139.7,0.50917357]
[1759104358995,1.23391672,4139.8,4139.7,1.20467357]
[1759104360304,0.43454,4140.4,4139.7,5.69747357]
[1759104360606,3.64227,4141.1,4141.0,1.4149]
[1759104360812,0.43452,4140.6,4140.5,0.205]
[1759104361108,0.75807,4140.1,4140.0,0.9005]
[1759104361310,0.43457,4140.1,4140.0,0.9005]
[1759104361508,0.43457,4140.1,4140.0,1.4149]
[1759104361703,0.43456,4140.3,4140.2,0.6955]
[1759104362010,0.43456,4140.3,4140.2,1.2099]
[1759104362206,0.43453,4140.5,4140.2,1.2099]
[1759104362400,0.43452,4140.6,4140.5,1.4149]
[1759104362706,0.75802,4140.6,4140.5,1.4149]
[1759104362910,1.10662,4140.6,4140.5,1.4149]
[1759104364108,1.61272,4140.6,4140.5,0.8694]
[1759104364809,0.43457,4140.1,4140.0,0.205]
[1759104365012,0.43457,4140.1,4139.9,3.2078]
[1759104365013,1.1067,4139.8,4139.7,0.69747357]
[1759104365508,1.6128,4139.8,4139.7,1.21187357]
[1759104365914,1.6128,4139.8,4139.7,0.87137357]
[1759104366210,1.6128,4139.8,4139.7,0.00197357]
[1759104366408,1.6128,4139.8,4139.0,0.205]
[1759104366409,0.43465,4139.4,4139.0,0.205]
[1759104366613,1.61288,4139.1,4139.0,0.8694]
[1759104366811,1.61288,4139.1,4139.0,1.4149]
[1759104367010,1.10678,4139.1,4139.0,1.4149]
[1759104367407,1.61577775,4139.1,4139.0,1.4149]
[1759104367620,1.61577775,4139.1,4139.0,1.2125285]
[1759104368412,1.61577775,4139.1,4139.0,0.0026285]
[1759104369014,1.61577775,4139.1,4139.0,0.8720285]
[1759104371513,1.61577775,4139.1,4137.7,1.08706]
[1759104371514,0.5061,4138.2,4137.7,3.2078]
[1759104371715,1.58159,4138.0,4137.9,0.87606714]
[1759104371919,1.58159,4138.0,4137.9,1.19836714]
[1759104372422,2.05852709,4138.0,4137.9,1.19836714]
[1759104372618,2.05852709,4138.0,4137.9,1.20144337]
[1759104372821,2.05852709,4138.0,4137.9,0.36474337]
[1759104373122,1.57207,4137.3,4137.2,4.3716]
[1759104373321,1.57207,4137.3,4137.2,1.1638]
[1759104373626,2.04874177,4137.3,4137.2,1.1638]
[1759104374111,0.3469,4137.3,4137.2,1.16586213]
[1759104374421,3.4548,4137.8,4137.6,0.504]
[1759104374616,4.23651,4137.8,4137.7,0.6598]
[1759104374816,1.25794489,4137.8,4137.7,1.1638]
[1759104376125,0.78171,4137.8,4137.7,1.1638]
[1759104376324,1.2575089,4137.8,4137.7,1.1638]
[1759104376624,1.5731089,4137.8,4137.7,1.1638]
[1759104376922,2.0478089,4137.8,4137.7,1.1638]
[1759104377321,2.0478089,4137.8,4137.5,0.3375]
[1759104377322,1.1372,4137.6,4137.5,0.3375]
[1759104377522,1.1372,4137.6,4137.5,0.8415]
[1759104378625,1.1372,4137.6,4137.5,1.1638]
[1759104379528,0.43482,4137.7,4137.5,1.3723]
[1759104379726,0.43482,4137.7,4137.6,1.1638]
[1759104380128,0.78172,4137.7,4137.6,1.1638]
[1759104382833,0.43482,4137.7,4137.6,1.1638]
[1759104383034,0.43482,4137.7,4137.6,6.1638]
[1759104384236,0.43482,4137.7,4137.6,6.4108]
[1759104384925,0.78412,4137.7,4137.6,6.1638]
[1759104385126,1.59312,4137.7,4137.6,1.4108]
[1759104385534,1.11352,4137.7,4137.6,1.4108]
[1759104386232,0.43482,4137.7,4137.6,1.4108]
[1759104386931,1.1583,4138.3,4138.2,1.1624]
[1759104387130,2.06814283,4138.3,4138.2,1.1624]
[1759104388136,1.58854283,4138.3,4138.2,1.1624]
[1759104388323,0.43476,4138.3,4138.2,1.1624]
[1759104388528,0.43475,4138.4,4138.2,0.6723]
[1759104388730,0.43475,4138.4,4138.3,1.1624]
[1759104389137,0.43474,4138.6,4138.5,1.3699]
[1759104389332,3.2078,4138.9,4138.5,1.6169]
[1759104389536,3.6425,4138.9,4138.8,0.6723]
[1759104389738,3.6425,4138.9,4138.8,1.1624]
[1759104389934,0.4347,4138.9,4138.8,1.1624]
[1759104390334,1.1134,4138.9,4138.8,1.4094]
[1759104390940,0.784,4138.9,4138.8,1.1624]
[1759104391141,0.784,4138.9,4138.8,1.4094]
[1759104392343,0.784,4138.9,4138.8,1.1624]
[1759104393433,0.784,4138.9,4138.8,4.3702]
[1759104394338,1.593,4138.9,4138.8,4.3702]
[1759104395040,1.1134,4138.9,4138.8,4.3702]
[1759104396033,1.1134,4138.9,4138.8,4.6172]
[1759104396840,0.6787,4138.4,4138.3,3.2078]
[1759104397043,1.5931,4137.9,4137.8,4.3702]
[1759104397437,1.5931,4137.9,4137.8,4.6172]
[1759104399343,0.43483,4137.6,4137.5,0.552]
[1759104399542,1.59313,4137.6,4137.5,1.6179]
[1759104399740,0.78413,4137.6,4137.5,1.6179]
[1759104401443,1.59313,4137.6,4137.5,1.1624]
[1759104401645,2.06926996,4137.6,4137.5,1.1624]
[1759104402143,1.1583,4137.3,4137.2,0.34556213]
[1759104402441,1.63443996,4137.3,4137.2,0.67436213]
[1759104404341,1.63443996,4137.3,4137.2,1.16446213]
[1759104404546,1.63443996,4137.3,4137.2,0.34556213]
[1759104404845,1.63443996,4137.3,4137.2,0.00206213]
[1759104406049,1.59325,4136.5,4136.4,1.1624]
[1759104406237,1.79185,4136.5,4136.4,1.1624]
[1759104406444,1.1583,4136.4,4136.3,3.2078]
[1759104406749,1.1583,4136.4,4136.3,4.3702]
[1759104407056,0.4456,4137.0,4136.3,4.3702]
[1759104407057,1.59312,4137.7,4137.6,0.8189]
[1759104407346,2.06903362,4137.7,4137.6,0.3435]
[1759104407537,2.06903362,4137.7,4137.2,0.4901]
[1759104407538,1.11357,4137.3,4137.2,1.4094]
[1759104407738,1.59317,4137.3,4137.2,1.4094]
[1759104407933,1.59317,4137.3,4137.2,1.1624]
[1759104409349,0.78417,4137.3,4137.2,1.1624]
[1759104409949,1.59317,4137.3,4137.2,1.1624]
[1759104410149,1.59317,4137.3,4137.2,1.4094]
[1759104410449,1.59317,4137.3,4137.2,1.1624]
[1759104410652,1.59317,4137.3,4137.2,1.0806]
[1759104411752,1.59317,4137.3,4137.2,0.8336]
[1759104411943,1.59317,4137.3,4137.0,3.2078]
[1759104411944,0.43489,4137.1,4137.0,3.2078]
[1759104412145,1.59319,4137.1,4137.0,3.2078]
[1759104412450,2.06911321,4137.1,4137.0,3.2078]
[1759104413847,2.06911321,4137.1,4137.0,1.188]
[1759104414046,0.91081321,4137.1,4137.0,1.3966]
[1759104414350,0.43488,4137.3,4137.2,1.1887]
[1759104414548,0.247,4137.6,4137.5,1.3973]
[1759104414852,1.1211,4137.6,4137.5,1.1887]
[1759104415047,1.1211,4137.6,4137.5,0.9271]
[1759104415346,1.1211,4137.6,4137.5,1.1887]
[1759104418745,1.59637205,4137.6,4137.5,1.1887]
[1759104419547,3.64263,4137.8,4137.6,0.94344]
[1759104419744,0.75493,4137.8,4137.7,1.1887]
[1759104419949,1.24473,4137.8,4137.7,1.1887]
[1759104420550,1.24467,4138.3,4138.2,1.1887]
[1759104420850,0.43477,4138.3,4138.2,1.1887]
[1759104421038,1.55587,4138.3,4138.2,1.1887]
[1759104421241,2.03120342,4138.3,4138.2,1.1887]
[1759104421755,2.03120342,4138.3,4138.2,1.4357]
[1759104422445,1.55587,4138.3,4138.2,1.4357]
[1759104422647,0.00289775,4139.1,4138.8,0.8445]
[1759104422648,0.75481,4138.9,4138.8,0.8445]
[1759104422846,2.03120431,4138.9,4138.8,0.6801]
[1759104423046,2.03120431,4138.9,4138.8,1.1887]
[1759104423349,0.47539431,4138.9,4138.8,1.1887]
[1759104423750,0.79549431,4138.9,4138.8,1.1887]
[1759104423954,1.28529431,4138.9,4138.8,1.1887]
[1759104424154,1.59649431,4138.9,4138.8,0.247]
[1759104424754,1.59649431,4138.9,4138.8,0.5912]
[1759104425954,1.59649431,4138.9,4138.8,0.3442]
[1759104426162,0.43472,4138.8,4138.6,0.247]
[1759104426452,1.1211,4138.7,4138.6,0.3442]
[1759104426851,0.8099,4138.3,4138.2,4.3965]
[1759104427252,0.8099,4138.3,4138.2,4.6435]
[1759104427453,0.43476,4138.4,4138.2,4.6435]
[1759104427758,0.4898,4138.7,4138.5,1.3973]
[1759104427759,0.43475,4138.6,4138.5,1.3973]
[1759104428150,1.24465,4138.6,4138.5,1.6443]
[1759104428456,1.55585,4138.6,4138.5,0.3442]
[1759104428763,1.55585,4138.6,4138.5,0.5912]
[1759104429359,1.55585,4138.6,4138.5,0.3442]
[1759104429755,0.00289775,4139.1,4138.5,0.8887]
[1759104429756,0.43472,4138.8,4138.5,0.8887]
[1759104430056,0.43471,4138.9,4138.8,1.1887]
[1759104430252,0.43471,4138.9,4138.8,1.4357]
[1759104430458,0.75481,4138.9,4138.8,1.4357]
[1759104430657,1.24461,4138.9,4138.8,1.4357]
[1759104431154,1.55581,4138.9,4138.8,0.3442]
[1759104431360,1.1211,4138.8,4138.7,3.2078]
[1759104431655,1.55587,4138.3,4138.2,3.8879]
[1759104431852,1.55587,4138.3,4138.2,4.1349]
[1759104433456,1.55587,4138.3,4138.2,4.6161]
[1759104434363,1.55587,4138.3,4138.2,4.3691]
[1759104434655,1.55587,4138.3,4138.2,4.6161]
[1759104435054,0.43477,4138.3,4138.2,4.3691]
[1759104435260,0.43476,4138.4,4138.3,1.1457]
[1759104435563,1.56168775,4139.1,4139.0,1.1457]
[1759104435762,0.43758775,4139.1,4139.0,1.58]
[1759104437057,0.43758775,4139.1,4139.0,1.333]
[1759104437058,0.75628775,4139.1,4139.0,1.333]
[1759104437256,1.56168775,4139.1,4139.0,1.1457]
[1759104437461,1.56168775,4139.1,4139.0,0.6645]
[1759104437661,0.00289775,4139.1,4139.0,1.58]
[1759104438260,0.00289775,4139.1,4139.0,1.333]
[1759104438461,0.00289775,4139.1,4139.0,1.58]
[1759104438657,0.6777,4140.0,4139.0,6.58]
[1759104438856,0.75334,4139.6,4139.5,1.333]
[1759104439061,0.75332,4139.8,4139.7,1.1457]
[1759104439266,0.736,4140.1,4139.7,1.3927]
[1759104439462,0.3187,4139.9,4139.8,1.1457]
[1759104439665,0.47492833,4139.9,4139.8,1.1457]
[1759104439861,0.79536442,4139.9,4139.8,1.14744702]
[1759104440262,0.80943609,4139.9,4139.8,1.14744702]
[1759104440469,1.12583609,4139.9,4139.8,0.66624702]
[1759104440766,1.12583609,4139.9,4139.8,1.14744702]
[1759104442070,1.6007393,4139.9,4139.8,1.14744702]
[1759104442368,1.6007393,4139.9,4139.8,1.39444702]
[1759104442568,1.6007393,4139.9,4139.8,0.66624702]
[1759104442764,1.6007393,4139.9,4139.8,0.00174702]
[1759104446266,1.0867,4139.2,4138.9,3.2078]
[1759104446462,1.724,4139.0,4138.9,3.2078]
[1759104446657,1.724,4139.0,4138.9,3.5171]
[1759104447268,1.724,4139.0,4138.9,3.51968416]
[1759104447571,2.19957955,4139.0,4138.9,3.51968416]
[1759104448169,2.19969683,4139.0,4138.9,3.51968416]
[1759104448369,2.19969683,4139.0,4138.9,4.33968416]
[1759104449070,4.48942,4139.5,4139.0,0.2041]
[1759104449071,3.8729,4139.5,4139.0,0.2041]
[1759104449375,0.43464,4139.5,4139.4,1.1293]
[1759104449567,0.90967191,4139.5,4139.4,1.3763]
[1759104450264,0.00173609,4139.9,4139.5,0.63874]
[1759104450467,0.00173609,4139.9,4139.8,1.1293]
[1759104450671,0.43452,4140.7,4140.6,1.1293]
[1759104450868,0.90935484,4140.7,4140.6,1.1293]
[1759104451274,1.22565484,4140.7,4140.6,1.1293]
[1759104451574,1.69774387,4140.7,4140.6,1.1293]
[1759104452277,2.00564387,4140.7,4140.6,1.1293]
[1759104452675,0.00198903,4140.7,4140.6,9.77163]
[1759104452871,1.22079,4142.0,4141.9,0.7941]
[1759104453073,1.22501607,4142.0,4141.9,1.1293]
[1759104453275,0.75069,4142.0,4141.9,1.1293]
[1759104453978,0.00188778,4142.0,4141.9,1.13228835]
[1759104457774,0.78828778,4142.0,4141.9,1.13228835]
[1759104457974,0.78828778,4142.0,4141.9,1.37928835]
[1759104459080,1.29118778,4142.0,4141.9,0.00298835]
[1759104459579,6.29118778,4142.0,4141.9,0.00298835]
[1759104459880,6.29118778,4142.0,4141.9,8.35e-06]
[1759104460578,1.29118778,4142.0,4141.9,8.35e-06]
[1759104462281,1.29118778,4142.0,4140.5,0.2041]
[1759104462282,0.4345,4140.9,4140.8,0.4848]
[1759104462471,0.43448,4141.1,4141.0,0.2026]
[1759104462672,0.43441,4141.7,4141.6,1.1293]
[1759104462882,0.43441,4141.7,4141.6,1.3763]
[1759104463079,0.43626778,4142.0,4141.9,1.1293]
[1759104463275,0.43626778,4142.0,4141.9,1.37852005]
[1759104465285,1.72556778,4142.0,4141.9,0.64672005]
[1759104465484,1.72556778,4142.0,4141.9,0.89372005]
[1759104466088,1.72556778,4142.0,4141.9,0.00222005]
[1759104468783,6.72556778,4142.0,4141.9,0.00222005]
[1759104469175,1.72556778,4142.0,4141.9,0.64672005]
[1759104469379,1.53056778,4142.0,4141.9,1.13152005]
[1759104469585,0.75256778,4142.0,4141.9,1.13152005]
[1759104470186,1.22266778,4142.0,4141.9,1.13152005]
[1759104471593,1.72556778,4142.0,4141.9,0.64672005]
[1759104473591,1.72556778,4142.0,4141.9,0.00222005]
[1759104474995,1.72556778,4142.0,4141.9,0.33302005]
[1759104476090,1.72556778,4142.0,4141.9,0.00222005]
[1759104477391,2.19873185,4142.0,4141.9,0.00222005]
[1759104479793,7.19873185,4142.0,4141.9,0.00222005]
[1759104479994,0.43448,4141.1,4141.0,0.492]
[1759104480202,0.43448,4141.1,4141.0,1.1282]
[1759104480203,1.53908,4141.1,4141.0,1.1282]
[1759104480500,0.43444,4141.5,4141.3,0.43445]
[1759104480692,0.43444,4141.5,4141.4,4.336]
[1759104480895,0.43444,4141.5,4141.4,3.2108199]
[1759104480896,2.21655515,4141.5,4141.4,3.2108199]
[1759104481095,2.21655515,4141.5,4141.4,0.0030199]
[1759104481896,1.53913,4140.6,4140.4,3.2078]
[1759104482101,1.78211515,4140.5,4140.4,4.336]
[1759104482404,1.27281515,4140.5,4140.4,4.336]
[1759104482698,0.47631515,4140.5,4140.4,9.33885508]
[1759104482903,0.43451,4140.8,4140.7,1.1282]
[1759104483200,0.9112958,4140.8,4140.7,1.1282]
[1759104483500,0.9112958,4140.8,4140.7,1.3752]
[1759104483894,0.4767858,4140.8,4140.7,1.3752]
[1759104484089,0.9112958,4140.8,4140.7,1.3752]
[1759104484400,0.43451,4140.8,4140.7,1.3752]
[1759104484599,0.43451,4140.8,4140.7,1.1282]
[1759104484794,0.43451,4140.8,4140.7,1.3752]
[1759104486204,0.43451,4140.8,4140.7,1.1282]
[1759104486396,0.43451,4140.8,4140.7,1.3752]
[1759104486601,0.74011,4140.8,4140.7,1.3752]
[1759104486797,1.23101,4140.8,4140.7,1.3752]
[1759104487402,0.74011,4140.8,4140.7,1.3752]
[1759104487703,1.23101,4140.8,4140.7,1.3752]
[1759104489905,0.7965,4140.8,4140.7,1.3752]
[1759104490099,0.4909,4141.7,4141.4,0.492]
[1759104490300,0.47642012,4141.6,4141.5,1.3144]
[1759104490501,0.78202012,4141.6,4141.5,1.3144]
[1759104490709,0.47642012,4141.6,4141.5,1.3144]
[1759104490894,0.49278778,4142.0,4141.9,0.6362]
[1759104491205,1.27466521,4142.0,4141.9,1.1282]
[1759104491700,1.27466521,4142.0,4141.9,4.336]
[1759104493209,0.79838778,4142.0,4141.9,4.336]
[1759104493409,0.00188778,4142.0,4141.9,4.336]
[1759104493912,0.32708778,4142.0,4141.9,4.336]
[1759104494409,0.00188778,4142.0,4141.9,4.336]
[1759104495206,1.24758,4142.9,4142.8,1.054]
[1759104495410,1.2892396,4142.9,4142.8,4.5088]
[1759104495600,0.8231396,4142.9,4142.8,4.5088]
[1759104496100,0.02452294,4142.9,4142.8,4.5088]
[1759104496904,0.0179105,4142.9,4142.8,9.5088]
[1759104497109,0.43421,4143.6,4143.5,0.6085]
[1759104497299,1.22551,4143.6,4143.5,4.5088]
[1759104497495,1.22551,4143.6,4143.5,4.2618]
[1759104497711,1.22551,4143.6,4143.5,4.5088]
[1759104498109,1.22742412,4143.6,4143.5,4.51128928]
[1759104498408,0.00191412,4143.6,4143.5,4.51128928]
[1759104498710,0.00191412,4143.6,4143.5,4.68948928]
[1759104498910,0.32711412,4143.6,4143.5,4.68948928]
[1759104499114,0.00191412,4143.6,4143.5,4.68948928]
[1759104501317,1.09541412,4143.6,4143.5,4.06578928]
[1759104501714,1.09541412,4143.6,4143.5,3.81878928]
[1759104501906,1.09541412,4143.6,4143.5,3.21028928]
[1759104502219,1.09541412,4143.6,4143.5,0.31288928]
[1759104502404,1.09541412,4143.6,4143.5,1.05648928]
[1759104502608,1.09541412,4143.6,4143.5,0.61098928]
[1759104502910,1.09541412,4143.6,4143.5,0.31288928]
[1759104503113,1.09541412,4143.6,4143.5,0.00248928]
[1759104503314,6.56928068,4143.6,4143.5,0.00248928]
[1759104503815,6.09541412,4143.6,4143.5,0.00248928]
[1759104504914,6.56924406,4143.6,4143.5,0.00248928]
[1759104505117,6.09541412,4143.6,4143.5,0.00248928]
[1759104505513,1.09541412,4143.6,4143.5,0.00248928]
[1759104506218,6.09541412,4143.6,4143.5,0.00248928]
[1759104506618,1.09541412,4143.6,4143.5,0.30448928]
[1759104506821,1.09541412,4143.6,4143.5,1.11688928]
[1759104507019,1.09541412,4143.6,4143.5,0.63008928]
[1759104507218,1.09541412,4143.6,4143.5,0.30448928]
[1759104507514,1.09541412,4143.6,4143.5,0.00248928]
[1759104507720,6.09541412,4143.6,4143.5,0.00248928]
[1759104508112,1.09541412,4143.6,4143.5,0.00248928]
[1759104508313,1.09541412,4143.6,4143.5,1.11688928]
[1759104509227,1.09711412,4143.6,4143.5,1.11688928]
[1759104509433,1.09711412,4143.6,4143.5,0.00248928]
[1759104509634,6.09711412,4143.6,4143.5,0.00248928]
[1759104510734,1.09711412,4143.6,4143.5,0.00248928]
[1759104512939,1.09711412,4143.6,4143.5,0.30448928]
[1759104513235,1.09711412,4143.6,4143.5,0.00248928]
[1759104513439,1.57341492,4143.6,4143.5,0.00248928]
[1759104513631,1.09711412,4143.6,4143.5,0.00248928]
[1759104514133,1.09711412,4143.6,4143.0,3.2078]
[1759104514134,0.3282,4143.1,4143.0,3.2078]
[1759104514434,1.2971,4142.5,4142.4,3.8354]
[1759104514639,0.4343,4142.9,4142.7,0.4868]
[1759104514834,0.91397,4143.1,4142.9,0.4868]
[1759104515036,0.43429,4142.9,4142.8,1.3614]
[1759104515238,0.3282,4142.9,4142.8,1.36398159]
[1759104515437,0.43428,4143.0,4142.9,0.7888]
[1759104515743,0.91397,4143.1,4142.9,0.6276]
[1759104515939,1.24217,4143.1,4143.0,1.1144]
[1759104516140,1.54607,4143.1,4143.0,1.1144]
[1759104517132,0.8079,4143.1,4143.0,1.1144]
[1759104517335,4.63523,4143.5,4143.4,1.1144]
[1759104517530,5.41615753,4143.5,4143.4,1.1144]
[1759104517732,4.93913,4143.5,4143.4,1.1144]
[1759104518039,4.93913,4143.5,4143.4,0.6276]
[1759104518238,2.20862535,4143.5,4143.4,0.6276]
[1759104518732,1.54607,4143.1,4143.0,1.1144]
[1759104519431,1.54607,4143.1,4143.0,0.6276]
[1759104520238,1.54607,4143.1,4143.0,1.1144]
[1759104521441,1.54607,4143.1,4143.0,0.6276]
[1759104522343,2.02449839,4143.1,4143.0,0.6276]
[1759104523037,1.59022839,4143.1,4143.0,0.6276]
[1759104523238,1.59022839,4143.1,4143.0,1.1144]
[1759104525239,1.59022839,4143.1,4143.0,1.3614]
[1759104525541,1.59022839,4143.1,4143.0,0.8746]
[1759104526045,1.59022839,4143.1,4143.0,0.6276]
[1759104526245,1.59022839,4143.1,4143.0,0.302]
[1759104526446,1.59022839,4143.1,4143.0,0.549]
[1759104526638,1.59022839,4143.1,4143.0,0.247]
[1759104527547,1.25168,4143.0,4142.9,0.302]
[1759104527847,2.20980839,4143.0,4142.9,0.549]
[1759104528237,2.20980839,4143.0,4142.9,0.302]
[1759104528437,2.20980839,4143.0,4142.9,0.549]
[1759104528637,0.95812839,4143.0,4142.9,1.79569]
[1759104528847,0.47842839,4143.0,4142.9,1.79569]
[1759104529047,0.43426,4143.2,4143.1,1.1144]
[1759104529250,1.24216,4143.2,4143.1,1.54867]
[1759104529442,1.28697646,4143.2,4143.1,1.54867]
[1759104529642,1.72123646,4143.2,4143.1,1.1144]
[1759104530045,2.02513646,4143.2,4143.1,1.1144]
[1759104530342,1.54607,4143.1,4143.0,0.247]
[1759104530642,1.28697646,4143.1,4143.0,1.3614]
[1759104530849,0.47907646,4143.1,4143.0,1.5574]
[1759104531043,0.6321,4143.4,4143.3,0.6276]
[1759104531340,0.8079,4143.0,4142.9,3.8354]
[1759104531547,0.8079,4143.0,4142.9,4.5692]
[1759104531742,0.8079,4143.3,4143.2,0.302]
[1759104531954,1.59115422,4143.3,4143.2,1.1144]
[1759104532248,1.1118,4143.0,4142.9,4.3222]
[1759104532438,1.59115422,4143.0,4142.9,4.5692]
[1759104533245,0.80981412,4143.6,4143.5,1.1144]
[1759104533446,1.28919065,4143.6,4143.5,1.3614]
[1759104533649,1.59309065,4143.6,4143.5,1.3614]
[1759104534545,1.59309065,4143.6,4143.5,0.549]
[1759104534851,0.1936,4143.0,4142.9,3.2078]
[1759104535054,1.73487653,4143.0,4142.9,3.77]
[1759104535744,2.16915653,4143.0,4142.8,0.00258159]
[1759104535946,1.54127653,4142.9,4142.8,0.00258159]
[1759104536546,1.54127653,4142.9,4141.9,1.29148474]
[1759104536547,1.2555,4142.0,4141.9,3.8183]
[1759104536747,1.73487653,4142.0,4141.9,3.523]
[1759104536940,1.73487653,4142.0,4141.9,3.2078]
[1759104537245,1.73487653,4142.0,4141.4,3.2078]
[1759104537246,1.68993,4141.5,4141.4,3.2078]
[1759104537442,1.68999,4141.0,4140.9,3.523]
[1759104537749,1.2555,4141.0,4140.9,4.06839018]
[1759104538051,1.2555,4141.0,4140.9,4.50759018]
[1759104538545,0.4395,4141.3,4140.9,4.69508018]
[1759104538751,1.0619,4141.3,4141.2,0.6105]
[1759104539145,1.49636,4141.3,4141.2,0.6105]
[1759104539647,1.49636,4141.3,4141.2,1.0497]
[1759104540751,0.1936,4141.5,4140.9,3.52609018]
[1759104540752,1.68999,4141.0,4140.9,3.52609018]
[1759104540946,1.68999,4141.0,4140.9,0.00309018]
[1759104541152,1.68999,4141.0,4140.9,0.61359018]
[1759104541551,1.68999,4141.0,4140.9,0.31829018]
[1759104541752,1.68999,4141.0,4140.9,0.00309018]
[1759104542156,7.16739095,4141.0,4140.9,0.00309018]
[1759104542454,6.68999,4141.0,4140.9,0.00309018]
[1759104542649,0.43454,4140.5,4140.4,3.2078]
[1759104542852,0.43454,4140.5,4138.8,3.69563518]
[1759104542853,1.69009,4140.0,4139.9,3.2078]
[1759104543048,1.69009,4140.0,4139.9,4.2575]
[1759104543260,1.69009,4140.0,4139.9,3.8183]
[1759104543458,1.69009,4140.0,4139.9,3.2078]